[Event "-chT Youth Countries 2019"]
[Site "Wuerzburg"]
[Date "2019.10.02"]
[Round "2.6"]
[White "Reuter, Elisa"]
[Black "Sinnhoefer, Lilian"]
[Result "1-0"]
[ECO "C54"]
[WhiteElo "1873"]
[BlackElo "1428"]
[Annotator "NA"]
[PlyCount "89"]
[EventDate "2019.10.02"]
[EventType "team-tourn"]
[EventRounds "7"]
[EventCountry "GER"]
[SourceTitle "playchess.com"]
[Source "ChessBase"]
[SourceQuality "1"]
[WhiteTeam "Thueringen"]
[BlackTeam "Bremen/Niedersachsen"]
[TimeControl "40/5400+30:1800+30"]

1. e4 {[%emt 0:00:00]} e5 {[%emt 0:00:00]} 2. Nf3 {[%emt 0:00:00]} Nc6 {[%emt 0:00:00]} 3. Bc4 {[%emt 0:00:00]} Bc5 {[%emt 0:00:00]} 4. c3 {[%emt 0:00:00]} Nf6 {[%emt 0:00:00]} 5. d3 {[%emt 0:00:00]} a6 {[%emt 0:00:00]} 6. Nbd2 {[%emt 0:00:09]} Ba7 {[%emt 0:00:49]} 7. Bb3 {[%emt 0:00:13]} h6 {[%emt 0:03:50]} 8. h3 {[%emt 0:04:30]} O-O {[%emt 0:04:22]} 9. O-O {[%emt 0:01:26]} d6 {[%emt 0:08:02]} 10. Re1 {[%emt 0:00:37]} Nh5 {[%emt 0:01:25]} 11. Nf1 {[%emt 0:09:08]} Qf6 {[%emt 0:01:08]} 12. Be3 {[%emt 0:03:49]} Nf4 {[%emt 0:09:48]} 13. Ng3 {[%emt 0:04:22]} Be6 {[%emt 0:13:37]} 14. Bxf4 {[%emt 0:01:44]} exf4 {[%emt 0:02:56]} 15. Nh5 {[%emt 0:01:57]} Qg6 {[%emt 0:06:50]} 16. Nxf4 {[%emt 0:00:10]} Qg3 {[%emt 0:02:07]} 17. Qd2 {[%emt 0:03:11]} Bxf2+ {[%emt 0:05:22]} 18. Qxf2 {[%emt 0:00:32]} Qxf4 {[%emt 0:00:15]} 19. Bc2 {[%emt 0:03:55]} Ne5 {[%emt 0:05:05]} 20. Nd4 {[%emt 0:05:24]} Qg5 {[%emt 0:02:11]} 21. Re3 {[%emt 0:02:10]} c5 {[%emt 0:06:54]} 22. Nf5 {[%emt 0:02:07]} Bxf5 {[%emt 0:01:23]} 23. exf5 {[%emt 0:00:09]} Qf6 {[%emt 0:03:51]} 24. Bb3 {[%emt 0:03:10]} Nc6 {[%emt 0:02:49]} 25. Rae1 {[%emt 0:02:15]} Rad8 {[%emt 0:01:52]} 26. Bd5 {[%emt 0:01:12]} Na5 {[%emt 0:02:07]} 27. Re7 {[%emt 0:02:11]} Rb8 {[%emt 0:01:11]} 28. R7e4 {[%emt 0:03:48]} Nc6 {[%emt 0:01:05]} 29. R1e3 {[%emt 0:01:39]} Kh8 {[%emt 0:01:24]} 30. h4 {[%emt 0:11:29]} Ne5 {[%emt 0:01:33]} 31. Rh3 {[%emt 0:03:13]} b5 {[%emt 0:05:00]} 32. g4 {[%emt 0:05:35]} g6 {[%emt 0:02:48]} 33. Rf4 {[%emt 0:02:24]} gxf5 {[%emt 0:00:46]} 34. Rxf5 {[%emt 0:00:17]} Qg6 {[%emt 0:00:51]} 35. g5 {[%emt 0:04:05]} Ng4 {[%emt 0:01:50]} 36. Qf4 {[%emt 0:00:42]} Ne5 {[%emt 0:01:42]} 37. d4 {[%emt 0:06:24]} cxd4 {[%emt 0:01:06]} 38. cxd4 {[%emt 0:00:05]} Nc4 {[%emt 0:00:16]} 39. Rf6 {[%emt 0:02:25]} Qb1+ {[%emt 0:00:54]} 40. Kh2 {[%emt 0:00:06]} Qxb2+ {[%emt 0:00:53]} 41. Bg2 {[%emt 0:30:05]} Ne5 {[%emt 0:03:11]} 42. Rxh6+ {[%emt 0:00:00]} Kg8 {[%emt 0:00:05]} 43. dxe5 {[%emt 0:00:00]} Rbc8 {[%emt 0:00:46]} 44. Qf6 {[%emt 0:00:00]} Qxe5+ {[%emt 0:00:05]} 45. Rg3 {[%emt 0:00:00] normal} 1-0

[Event "-chT Youth Countries 2019"]
[Site "Wuerzburg"]
[Date "2019.10.02"]
[Round "2.6"]
[White "Metzdorf, Matteo"]
[Black "Rempe, Jonas"]
[Result "0-1"]
[ECO "C90"]
[WhiteElo "1862"]
[BlackElo "1816"]
[Annotator "NA"]
[PlyCount "98"]
[EventDate "2019.10.02"]
[EventType "team-tourn"]
[EventRounds "7"]
[EventCountry "GER"]
[SourceTitle "playchess.com"]
[Source "ChessBase"]
[SourceQuality "1"]
[WhiteTeam "Rheinland-Pfalz"]
[BlackTeam "Schleswig-Holstein"]
[TimeControl "40/5400+30:1800+30"]

1. e4 {[%emt 0:00:00]} e5 {[%emt 0:00:00]} 2. Nf3 {[%emt 0:00:00]} Nc6 {[%emt 0:00:00]} 3. Bb5 {[%emt 0:00:00]} a6 {[%emt 0:00:00]} 4. Ba4 {[%emt 0:00:00]} Nf6 {[%emt 0:00:00]} 5. O-O {[%emt 0:00:16]} Be7 {[%emt 0:00:00]} 6. Re1 {[%emt 0:00:37]} b5 {[%emt 0:00:00]} 7. Bb3 {[%emt 0:00:04]} O-O {[%emt 0:00:00]} 8. d3 {[%emt 0:01:11]} d6 {[%emt 0:00:34]} 9. c3 {[%emt 0:00:19]} Na5 {[%emt 0:00:10]} 10. Bc2 {[%emt 0:00:04]} c5 {[%emt 0:00:03]} 11. Nbd2 {[%emt 0:00:12]} Nc6 {[%emt 0:00:11]} 12. Nf1 {[%emt 0:00:19]} h6 {[%emt 0:00:05]} 13. h3 {[%emt 0:00:42]} Be6 {[%emt 0:00:07]} 14. Ng3 {[%emt 0:03:16]} Rc8 {[%emt 0:00:07]} 15. Nh2 {[%emt 0:05:44]} d5 {[%emt 0:15:22]} 16. Qf3 {[%emt 0:07:07]} d4 {[%emt 0:02:32]} 17. Ng4 {[%emt 0:03:00]} Nxg4 {[%emt 0:01:44]} 18. hxg4 {[%emt 0:00:11]} dxc3 {[%emt 0:00:15]} 19. bxc3 {[%emt 0:00:46]} b4 {[%emt 0:00:47]} 20. Bd2 {[%emt 0:18:45]} Bg5 {[%emt 0:03:04]} 21. Be3 {[%emt 0:16:39]} Bxe3 {[%emt 0:00:58]} 22. fxe3 {[%emt 0:02:22]} bxc3 {[%emt 0:00:29]} 23. a3 {[%emt 0:04:40]} Qg5 {[%emt 0:06:10]} 24. Bd1 {[%emt 0:04:26]} Rfd8 {[%emt 0:00:38]} 25. Be2 {[%emt 0:01:18]} Rb8 {[%emt 0:03:21]} 26. Rec1 {[%emt 0:04:13]} Rb3 {[%emt 0:05:49]} 27. Bd1 {[%emt 0:07:05]} c2 {[%emt 0:00:39]} 28. Bxc2 {[%emt 0:02:34]} Bxg4 {[%emt 0:00:20]} 29. Qf2 {[%emt 0:01:55]} Rb2 {[%emt 0:01:07]} 30. Qe1 {[%emt 0:05:04]} h5 {[%emt 0:02:44]} 31. Nf1 {[%emt 0:03:53]} h4 {[%emt 0:01:38]} 32. g3 {[%emt 0:05:49]} Bh3 {[%emt 0:00:44]} 33. Qc3 {[%emt 0:01:42]} Bxf1 {[%emt 0:10:38]} 34. Qxb2 {[%emt 0:01:54]} Qxg3+ {[%emt 0:04:02]} 35. Kxf1 {[%emt 0:00:07]} h3 {[%emt 0:00:03]} 36. Bb3 {[%emt 0:00:59]} Rd6 {[%emt 0:00:37]} 37. Bxf7+ {[%emt 0:00:45]} Kxf7 {[%emt 0:00:39]} 38. Rc2 {[%emt 0:00:23]} Rf6+ {[%emt 0:00:32]} 39. Rf2 {[%emt 0:00:34]} Qg2+ {[%emt 0:00:09]} 40. Ke1 {[%emt 0:00:32]} Qg1+ {[%emt 0:00:05]} 41. Kd2 {[%emt 0:02:31]} Qxf2+ {[%emt 0:00:24]} 42. Kc3 {[%emt 0:00:07]} Qxb2+ {[%emt 0:00:04]} 43. Kxb2 {[%emt 0:00:03]} Rh6 {[%emt 0:00:05]} 44. Rh1 {[%emt 0:00:30]} g5 {[%emt 0:00:08]} 45. Kb3 {[%emt 0:00:08]} g4 {[%emt 0:00:05]} 46. Kc4 {[%emt 0:00:04]} g3 {[%emt 0:00:06]} 47. Rf1+ {[%emt 0:00:06]} Rf6 {[%emt 0:00:16]} 48. Rg1 {[%emt 0:00:12]} h2 {[%emt 0:00:08]} 49. Rb1 {[%emt 0:00:06]} g2 {[%emt 0:00:07] normal} 0-1

[Event "-chT Youth Countries 2019"]
[Site "Wuerzburg"]
[Date "2019.10.02"]
[Round "2.6"]
[White "Peglau, Charis"]
[Black "Schnabel, Luise"]
[Result "0-1"]
[ECO "B03"]
[WhiteElo "1827"]
[BlackElo "1900"]
[Annotator "NA"]
[PlyCount "134"]
[EventDate "2019.10.02"]
[EventType "team-tourn"]
[EventRounds "7"]
[EventCountry "GER"]
[SourceTitle "playchess.com"]
[Source "ChessBase"]
[SourceQuality "1"]
[WhiteTeam "Sachsen"]
[BlackTeam "Berlin"]
[TimeControl "40/5400+30:1800+30"]

1. e4 {[%emt 0:00:00]} Nf6 {[%emt 0:00:00]} 2. e5 {[%emt 0:00:00]} Nd5 {[%emt 0:00:00]} 3. c4 {[%emt 0:00:00]} Nb6 {[%emt 0:00:00]} 4. d4 {[%emt 0:00:00]} d6 {[%emt 0:00:00]} 5. exd6 {[%emt 0:00:01]} cxd6 {[%emt 0:00:04]} 6. Nc3 {[%emt 0:00:07]} g6 {[%emt 0:00:08]} 7. Be3 {[%emt 0:00:14]} Bg7 {[%emt 0:00:10]} 8. Nf3 {[%emt 0:00:18]} O-O {[%emt 0:00:24]} 9. Be2 {[%emt 0:00:14]} Bg4 {[%emt 0:01:02]} 10. Rc1 {[%emt 0:00:27]} Nc6 {[%emt 0:00:19]} 11. b3 {[%emt 0:00:13]} d5 {[%emt 0:00:38]} 12. c5 {[%emt 0:00:14]} Nc8 {[%emt 0:00:09]} 13. O-O {[%emt 0:00:15]} e6 {[%emt 0:00:46]} 14. b4 {[%emt 0:00:43]} Nxb4 {[%emt 0:06:54]} 15. Rb1 {[%emt 0:00:29]} Nc6 {[%emt 0:05:41]} 16. Rxb7 {[%emt 0:00:47]} Na5 {[%emt 0:04:34]} 17. Rb4 {[%emt 0:02:27]} Ne7 {[%emt 0:06:58]} 18. Rb2 {[%emt 0:04:09]} Bxf3 {[%emt 0:04:32]} 19. Bxf3 {[%emt 0:00:18]} Nc4 {[%emt 0:01:10]} 20. Rb7 {[%emt 0:01:05]} Nf5 {[%emt 0:02:31]} 21. Re1 {[%emt 0:04:52]} Qa5 {[%emt 0:06:39]} 22. Rb3 {[%emt 0:08:34]} Rab8 {[%emt 0:03:27]} 23. Rxb8 {[%emt 0:05:25]} Rxb8 {[%emt 0:00:30]} 24. Qd3 {[%emt 0:04:55]} Rb2 {[%emt 0:09:52]} 25. Re2 {[%emt 0:04:26]} Rb8 {[%emt 0:07:03]} 26. h3 {[%emt 0:00:40]} Nh4 {[%emt 0:04:12]} 27. Bf4 {[%emt 0:05:53]} Rc8 {[%emt 0:02:32]} 28. Re1 {[%emt 0:03:13]} Nxf3+ {[%emt 0:02:14]} 29. gxf3 {[%emt 0:00:13]} Qd8 {[%emt 0:13:10]} 30. Kg2 {[%emt 0:04:43]} Na5 {[%emt 0:04:35]} 31. Nb5 {[%emt 0:00:55]} Nc6 {[%emt 0:01:57]} 32. Rb1 {[%emt 0:02:04]} Qf6 {[%emt 0:04:53]} 33. Nd6 {[%emt 0:11:12]} Rf8 {[%emt 0:05:18]} 34. Be3 {[%emt 0:08:07]} Nxd4 {[%emt 0:02:38]} 35. Bxd4 {[%emt 0:01:13]} Qxd4 {[%emt 0:00:00]} 36. Qxd4 {[%emt 0:00:27]} Bxd4 {[%emt 0:00:00]} 37. c6 {[%emt 0:01:57]} Be5 {[%emt 0:00:52]} 38. Nb5 {[%emt 0:01:23]} a6 {[%emt 0:00:54]} 39. Na7 {[%emt 0:02:34]} Bd4 {[%emt 0:00:56]} 40. Rb7 {[%emt 0:00:10]} Ra8 {[%emt 0:01:03]} 41. c7 {[%emt 0:30:34]} Bxa7 {[%emt 0:30:43]} 42. Rxa7 {[%emt 0:00:11]} Rc8 {[%emt 0:00:19]} 43. Kg3 {[%emt 0:06:51]} Kf8 {[%emt 0:00:00]} 44. Kf4 {[%emt 0:00:00]} h6 {[%emt 0:00:00]} 45. a4 {[%emt 0:00:00]} Ke7 {[%emt 0:00:00]} 46. a5 {[%emt 0:00:00]} f6 {[%emt 0:00:00]} 47. Ke3 {[%emt 0:00:00]} Kd7 {[%emt 0:00:00]} 48. Rxa6 {[%emt 0:00:00]} Rxc7 {[%emt 0:00:00]} 49. Kd3 {[%emt 0:00:00]} g5 {[%emt 0:00:00]} 50. Rb6 {[%emt 0:00:00]} Rc6 {[%emt 0:00:00]} 51. Rb7+ {[%emt 0:00:00]} Kd6 {[%emt 0:00:00]} 52. Rh7 {[%emt 0:00:00]} Ra6 {[%emt 0:00:00]} 53. Rxh6 {[%emt 0:00:00]} Ke5 {[%emt 0:00:25]} 54. f4+ {[%emt 0:00:00]} gxf4 {[%emt 0:01:40]} 55. h4 {[%emt 0:00:00]} Rxa5 {[%emt 0:00:21]} 56. Rh8 {[%emt 0:00:00]} Ra3+ {[%emt 0:00:24]} 57. Ke2 {[%emt 0:00:00]} f3+ {[%emt 0:01:19]} 58. Kd2 {[%emt 0:00:00]} Ra2+ {[%emt 0:00:47]} 59. Ke3 {[%emt 0:00:00]} Ra3+ {[%emt 0:00:17]} 60. Kd2 {[%emt 0:00:00]} Ke4 {[%emt 0:00:26]} 61. Rb8 {[%emt 0:00:00]} Ra2+ {[%emt 0:00:55]} 62. Ke1 {[%emt 0:00:00]} e5 {[%emt 0:01:21]} 63. h5 {[%emt 0:00:00]} Ra1+ {[%emt 0:00:14]} 64. Kd2 {[%emt 0:00:00]} Rh1 {[%emt 0:00:12]} 65. Rh8 {[%emt 0:00:00]} Rh2 {[%emt 0:00:49]} 66. h6 {[%emt 0:00:00]} Rxf2+ {[%emt 0:00:09]} 67. Ke1 {[%emt 0:00:00]} Rh2 {[%emt 0:00:16] normal} 0-1

[Event "-chT Youth Countries 2019"]
[Site "Wuerzburg"]
[Date "2019.10.02"]
[Round "2.6"]
[White "Butenandt, Svenja"]
[Black "Fuchs, Emily"]
[Result "1-0"]
[ECO "E44"]
[WhiteElo "1805"]
[BlackElo "1490"]
[Annotator "NA"]
[PlyCount "79"]
[EventDate "2019.10.02"]
[EventType "team-tourn"]
[EventRounds "7"]
[EventCountry "GER"]
[SourceTitle "playchess.com"]
[Source "ChessBase"]
[SourceQuality "1"]
[WhiteTeam "Bayern 2"]
[BlackTeam "Saarland"]
[TimeControl "40/5400+30:1800+30"]

1. d4 {[%emt 0:00:00]} Nf6 {[%emt 0:00:00]} 2. c4 {[%emt 0:00:00]} e6 {[%emt 0:00:00]} 3. Nc3 {[%emt 0:00:00]} Bb4 {[%emt 0:00:00]} 4. e3 {[%emt 0:00:00]} b6 {[%emt 0:00:27]} 5. Nge2 {[%emt 0:00:00]} Bb7 {[%emt 0:00:16]} 6. a3 {[%emt 0:00:18]} Bxc3+ {[%emt 0:00:09]} 7. Nxc3 {[%emt 0:00:05]} O-O {[%emt 0:00:48]} 8. Bd3 {[%emt 0:07:28]} d5 {[%emt 0:08:11]} 9. O-O {[%emt 0:04:25]} Nbd7 {[%emt 0:05:36]} 10. cxd5 {[%emt 0:03:12]} exd5 {[%emt 0:00:21]} 11. Qc2 {[%emt 0:08:36]} Re8 {[%emt 0:04:35]} 12. Nb5 {[%emt 0:06:26]} a6 {[%emt 0:10:21]} 13. Nc3 {[%emt 0:00:54]} c5 {[%emt 0:07:26]} 14. b3 {[%emt 0:02:59]} Rc8 {[%emt 0:04:27]} 15. dxc5 {[%emt 0:05:45]} Nxc5 {[%emt 0:05:59]} 16. Bf5 {[%emt 0:02:31]} Ra8 {[%emt 0:09:06]} 17. b4 {[%emt 0:03:20]} Nce4 {[%emt 0:01:46]} 18. Nxe4 {[%emt 0:01:12]} Nxe4 {[%emt 0:01:32]} 19. Bb2 {[%emt 0:01:10]} Bc8 {[%emt 0:09:13]} 20. Bxe4 {[%emt 0:01:59]} dxe4 {[%emt 0:03:07]} 21. Qc3 {[%emt 0:02:31]} f6 {[%emt 0:06:41]} 22. Rfd1 {[%emt 0:02:13]} Qe7 {[%emt 0:00:38]} 23. Qc6 {[%emt 0:01:19]} Bg4 {[%emt 0:00:33]} 24. Rd6 {[%emt 0:05:06]} Rab8 {[%emt 0:04:52]} 25. h3 {[%emt 0:02:31]} Be2 26. Bd4 {[%emt 0:15:29]} Red8 {[%emt 0:09:48]} 27. Rxd8+ Qxd8 {[%emt 0:02:59]} 28. Qxe4 {[%emt 0:02:45]} Kf7 {[%emt 0:01:14]} 29. Qxh7 {[%emt 0:01:13]} Qd5 {[%emt 0:01:49]} 30. Qc2 {[%emt 0:01:09]} Qc4 {[%emt 0:01:32]} 31. Qxc4+ {[%emt 0:00:57]} Bxc4 {[%emt 0:00:08]} 32. Rc1 {[%emt 0:00:02]} b5 {[%emt 0:00:10]} 33. g4 {[%emt 0:01:16]} Kg6 {[%emt 0:01:10]} 34. Kh2 {[%emt 0:00:11]} Re8 {[%emt 0:00:39]} 35. Kg3 {[%emt 0:00:28]} Kh6 {[%emt 0:01:12]} 36. h4 {[%emt 0:00:37]} Re4 {[%emt 0:00:41]} 37. f4 {[%emt 0:01:33]} Re6 {[%emt 0:00:29]} 38. Rd1 {[%emt 0:01:22]} g5 {[%emt 0:00:30]} 39. hxg5+ {[%emt 0:00:09]} fxg5 {[%emt 0:00:06]} 40. Rh1+ {[%emt 0:00:04] normal} 1-0

[Event "-chT Youth Countries 2019"]
[Site "Wuerzburg"]
[Date "2019.10.02"]
[Round "2.6"]
[White "Faerber, Sophie"]
[Black "Grabs, Peter"]
[Result "0-1"]
[ECO "C06"]
[WhiteElo "1414"]
[BlackElo "1592"]
[Annotator "NA"]
[PlyCount "48"]
[EventDate "2019.10.02"]
[EventType "team-tourn"]
[EventRounds "7"]
[EventCountry "GER"]
[SourceTitle "playchess.com"]
[Source "ChessBase"]
[SourceQuality "1"]
[WhiteTeam "Baden 2"]
[BlackTeam "SG Brandenburg / Berlin"]
[TimeControl "40/5400+30:1800+30"]

1. e4 {[%emt 0:00:00]} e6 {[%emt 0:00:00]} 2. d4 {[%emt 0:00:00]} d5 {[%emt 0:00:00]} 3. Nd2 {[%emt 0:00:20]} Nf6 {[%emt 0:00:00]} 4. e5 {[%emt 0:00:28]} Nfd7 {[%emt 0:00:00]} 5. Bd3 {[%emt 0:00:28]} c5 {[%emt 0:00:10]} 6. c3 {[%emt 0:00:20]} Nc6 {[%emt 0:00:02]} 7. Ne2 {[%emt 0:00:30]} cxd4 {[%emt 0:00:28]} 8. cxd4 {[%emt 0:00:43]} f6 {[%emt 0:00:38]} 9. exf6 {[%emt 0:00:30]} Nxf6 {[%emt 0:00:09]} 10. Nf3 {[%emt 0:01:56]} Bd6 {[%emt 0:00:21]} 11. O-O {[%emt 0:00:48]} O-O {[%emt 0:00:26]} 12. Bf4 {[%emt 0:01:25]} Bxf4 {[%emt 0:06:54]} 13. Nxf4 {[%emt 0:00:07]} Kh8 {[%emt 0:00:36]} 14. Re1 {[%emt 0:27:22]} Qd6 {[%emt 0:05:24]} 15. g3 {[%emt 0:01:46]} Bd7 {[%emt 0:01:11]} 16. a3 {[%emt 0:28:04]} Rae8 {[%emt 0:02:36]} 17. Bc2 {[%emt 0:11:20]} Re7 {[%emt 0:16:07]} 18. Ng5 {[%emt 0:08:25]} Kg8 {[%emt 0:02:16]} 19. Qb1 {[%emt 0:07:03]} g6 {[%emt 0:05:45]} 20. Bxg6 {[%emt 0:04:30]} Rg7 {[%emt 0:02:17]} 21. Bxh7+ {[%emt 0:02:29]} Nxh7 {[%emt 0:00:32]} 22. Ngxe6 {[%emt 0:00:13]} Bxe6 {[%emt 0:01:12]} 23. Nxe6 {[%emt 0:00:03]} Nxd4 {[%emt 0:02:37]} 24. Kg2 {[%emt 0:01:11]} Nxe6 {[%emt 0:00:08] normal} 0-1

[Event "-chT Youth Countries 2019"]
[Site "Wuerzburg"]
[Date "2019.10.02"]
[Round "2.7"]
[White "Wiesner, Paula"]
[Black "Kempe, Caius Emilian"]
[Result "0-1"]
[ECO "D15"]
[WhiteElo "1958"]
[BlackElo "1835"]
[Annotator "NA"]
[PlyCount "78"]
[EventDate "2019.10.02"]
[EventType "team-tourn"]
[EventRounds "7"]
[EventCountry "GER"]
[SourceTitle "playchess.com"]
[Source "ChessBase"]
[SourceQuality "1"]
[WhiteTeam "Berlin"]
[BlackTeam "Sachsen"]
[TimeControl "40/5400+30:1800+30"]

1. d4 {[%emt 0:00:00]} d5 {[%emt 0:00:00]} 2. c4 {[%emt 0:00:00]} c6 {[%emt 0:00:00]} 3. Nf3 {[%emt 0:00:00]} Nf6 {[%emt 0:00:00]} 4. Nc3 {[%emt 0:00:00]} a6 {[%emt 0:00:00]} 5. e3 {[%emt 0:00:00]} b5 {[%emt 0:00:07]} 6. cxd5 {[%emt 0:01:46]} cxd5 {[%emt 0:00:05]} 7. Bd3 {[%emt 0:01:01]} e6 {[%emt 0:00:24]} 8. O-O {[%emt 0:03:23]} Bd6 {[%emt 0:00:37]} 9. Qe2 {[%emt 0:01:42]} O-O {[%emt 0:00:36]} 10. e4 {[%emt 0:02:53]} b4 {[%emt 0:04:58]} 11. Na4 {[%emt 0:02:51]} dxe4 {[%emt 0:01:41]} 12. Bxe4 {[%emt 0:00:07]} Nxe4 {[%emt 0:00:33]} 13. Qxe4 {[%emt 0:00:13]} Ra7 {[%emt 0:00:41]} 14. Ng5 {[%emt 0:08:48]} f5 {[%emt 0:02:16]} 15. Qe2 {[%emt 0:02:50]} Re7 {[%emt 0:03:53]} 16. Nf3 {[%emt 0:02:23]} h6 {[%emt 0:06:46]} 17. Nc5 {[%emt 0:04:09]} Qb6 {[%emt 0:08:14]} 18. Be3 {[%emt 0:06:37]} Nc6 {[%emt 0:07:04]} 19. Rac1 {[%emt 0:03:53]} f4 {[%emt 0:03:27]} 20. Bd2 {[%emt 0:02:12]} Nxd4 {[%emt 0:00:55]} 21. Nxd4 {[%emt 0:01:52]} Bxc5 {[%emt 0:00:13]} 22. Nf3 {[%emt 0:04:24]} a5 {[%emt 0:04:49]} 23. Ne5 {[%emt 0:06:07]} Ba6 {[%emt 0:04:18]} 24. Nc4 {[%emt 0:00:07]} Qa7 {[%emt 0:01:11]} 25. Qe4 {[%emt 0:07:02]} Bb7 {[%emt 0:01:50]} 26. Qc2 {[%emt 0:01:03]} Bd4 {[%emt 0:03:49]} 27. Nd6 {[%emt 0:03:01]} Ba6 {[%emt 0:00:12]} 28. Nc4 {[%emt 0:01:48]} Bxc4 {[%emt 0:06:46]} 29. Qxc4 {[%emt 0:00:29]} Bxb2 {[%emt 0:00:21]} 30. Rce1 {[%emt 0:02:39]} Qd4 {[%emt 0:00:46]} 31. Qxd4 {[%emt 0:00:30]} Bxd4 {[%emt 0:00:01]} 32. Re4 {[%emt 0:00:09]} e5 {[%emt 0:00:18]} 33. Rfe1 {[%emt 0:00:18]} Rc7 {[%emt 0:00:28]} 34. Rc1 {[%emt 0:00:55]} Rxc1+ {[%emt 0:00:42]} 35. Bxc1 {[%emt 0:00:04]} Rc8 {[%emt 0:00:20]} 36. Re1 {[%emt 0:00:44]} Rc2 {[%emt 0:00:12]} 37. Rf1 {[%emt 0:00:04]} Rxa2 {[%emt 0:00:22]} 38. g3 {[%emt 0:00:27]} fxg3 {[%emt 0:00:19]} 39. hxg3 {[%emt 0:00:12]} b3 {[%emt 0:00:12] normal} 0-1

[Event "-chT Youth Countries 2019"]
[Site "Wuerzburg"]
[Date "2019.10.02"]
[Round "2.7"]
[White "Bardorz, Jana"]
[Black "Sauer, Tim"]
[Result "1-0"]
[ECO "B13"]
[WhiteElo "1929"]
[BlackElo "1597"]
[Annotator "NA"]
[PlyCount "109"]
[EventDate "2019.10.02"]
[EventType "team-tourn"]
[EventRounds "7"]
[EventCountry "GER"]
[SourceTitle "playchess.com"]
[Source "ChessBase"]
[SourceQuality "1"]
[WhiteTeam "Bayern 1"]
[BlackTeam "Niedersachsen"]
[TimeControl "40/5400+30:1800+30"]

1. e4 {[%emt 0:00:00]} c6 {[%emt 0:00:00]} 2. d4 {[%emt 0:00:00]} d5 {[%emt 0:00:00]} 3. exd5 {[%emt 0:00:00]} cxd5 {[%emt 0:00:00]} 4. Bd3 {[%emt 0:00:00]} Nc6 {[%emt 0:00:06]} 5. c3 {[%emt 0:00:00]} Nf6 {[%emt 0:00:12]} 6. Bf4 {[%emt 0:00:16]} Bg4 {[%emt 0:00:12]} 7. Qb3 {[%emt 0:00:14]} Qd7 {[%emt 0:00:15]} 8. Nd2 {[%emt 0:00:35]} e6 {[%emt 0:00:13]} 9. Ngf3 {[%emt 0:00:10]} Bxf3 {[%emt 0:00:08]} 10. Nxf3 {[%emt 0:00:11]} Bd6 {[%emt 0:00:45]} 11. Bxd6 {[%emt 0:01:27]} Qxd6 {[%emt 0:00:07]} 12. O-O {[%emt 0:01:00]} O-O {[%emt 0:00:06]} 13. Rae1 {[%emt 0:02:44]} Qc7 {[%emt 0:00:10]} 14. h3 {[%emt 0:05:12]} Rab8 {[%emt 0:00:57]} 15. Ne5 {[%emt 0:04:17]} Nxe5 {[%emt 0:01:11]} 16. Rxe5 {[%emt 0:01:23]} b5 {[%emt 0:00:57]} 17. a3 {[%emt 0:05:38]} a5 {[%emt 0:04:20]} 18. Rc1 {[%emt 0:12:25]} Qb6 {[%emt 0:03:11]} 19. Qd1 {[%emt 0:04:23]} b4 {[%emt 0:01:18]} 20. axb4 {[%emt 0:02:29]} axb4 {[%emt 0:00:12]} 21. c4 {[%emt 0:03:48]} dxc4 {[%emt 0:02:08]} 22. Rxc4 {[%emt 0:03:23]} Rfd8 {[%emt 0:01:32]} 23. Rec5 {[%emt 0:04:46]} g6 {[%emt 0:11:31]} 24. Be2 {[%emt 0:08:32]} Qd6 {[%emt 0:14:42]} 25. Bf3 {[%emt 0:04:05]} Kg7 {[%emt 0:10:29]} 26. Qc1 {[%emt 0:08:37]} Ng8 {[%emt 0:08:58]} 27. Rc6 {[%emt 0:03:23]} Qd7 {[%emt 0:01:06]} 28. Qf4 {[%emt 0:02:00]} Nh6 {[%emt 0:04:00]} 29. Qe5+ {[%emt 0:04:08]} Kg8 {[%emt 0:01:17]} 30. Qf6 {[%emt 0:02:31]} Rf8 {[%emt 0:02:12]} 31. Rc7 {[%emt 0:02:56]} Qa4 {[%emt 0:00:35]} 32. Kh2 {[%emt 0:04:58]} Qa1 {[%emt 0:02:44]} 33. d5 {[%emt 0:01:44]} exd5 {[%emt 0:00:46]} 34. Bxd5 {[%emt 0:00:50]} Rbd8 {[%emt 0:01:03]} 35. Bxf7+ {[%emt 0:05:00]} Nxf7 {[%emt 0:00:37]} 36. Rxf7 {[%emt 0:00:11]} Rxf7 {[%emt 0:00:57]} 37. Qxd8+ {[%emt 0:00:06]} Kg7 {[%emt 0:00:19]} 38. Qd4+ {[%emt 0:00:19]} Kh6 {[%emt 0:01:37]} 39. Rxb4 {[%emt 0:01:05]} Qf1 {[%emt 0:01:43]} 40. Qh4+ {[%emt 0:00:49]} Kg7 {[%emt 0:00:25]} 41. Rf4 {[%emt 0:30:16]} Rxf4 {[%emt 0:31:56]} 42. Qxf4 {[%emt 0:00:05]} Qb5 {[%emt 0:00:18]} 43. b4 {[%emt 0:00:39]} Kg8 {[%emt 0:01:13]} 44. Qd6 {[%emt 0:02:53]} Qf5 {[%emt 0:02:19]} 45. Qc5 {[%emt 0:01:39]} Qf4+ {[%emt 0:00:17]} 46. g3 {[%emt 0:00:35]} Qf3 {[%emt 0:00:23]} 47. b5 {[%emt 0:00:33]} h5 {[%emt 0:00:19]} 48. Qe3 {[%emt 0:00:00]} Qd5 {[%emt 0:00:00]} 49. Qe8+ {[%emt 0:00:00]} Kg7 {[%emt 0:00:00]} 50. Qe7+ {[%emt 0:00:00]} Kg8 {[%emt 0:00:00]} 51. b6 {[%emt 0:00:00]} Qf5 {[%emt 0:00:00]} 52. Qe3 {[%emt 0:00:00]} Qf7 {[%emt 0:00:00]} 53. Qd4 {[%emt 0:00:00]} Kh7 {[%emt 0:00:00]} 54. Qf4 {[%emt 0:00:00]} Qb3 {[%emt 0:00:00]} 55. Qc7+ {[%emt 0:00:00] normal} 1-0